fUSD/lending_fUSD_20250623
["ID","MTS","AMOUNT","RATE_DAILY","PERIOD"]
[367251828,1750716658331,-1085.67,0.00022191,2]
[367251829,1750716658341,-490.0,0.00022191,2]
[367251830,1750716658350,-490.0,0.00022191,2]
[367251831,1750716658359,-490.0,0.00022191,2]
[367251832,1750716658369,-510.97,0.00022191,2]
[367251833,1750716658378,-863.86,0.00022191,2]
[367251834,1750716658387,-490.0,0.00022191,2]
[367251835,1750716658400,-1710.12,0.00022191,2]
[367251836,1750716658409,-11163.61,0.00022191,2]
[367251837,1750716658419,-490.0,0.00022191,2]
[367251838,1750716658428,-630.93,0.00022191,2]
[367251839,1750716658438,-587.04,0.00022191,2]
[367251840,1750716658448,-1491.48,0.00022191,2]
[367251841,1750716658457,-803.78,0.00022191,2]
[367251842,1750716658467,-6185.44,0.00022191,2]
[367251843,1750716658477,-1009.47,0.00022191,2]
[367251844,1750716658487,-741.55,0.00022191,2]
[367251845,1750716658497,-1062.92,0.00022191,2]
[367251846,1750716658507,-664.97,0.00022191,2]
[367251847,1750716658517,-490.0,0.00022191,2]
[367251848,1750716658527,-1256.25,0.00022191,2]
[367251849,1750716658536,-490.0,0.00022191,2]
[367251850,1750716658545,-2072.48,0.00022191,2]
[367251851,1750716658555,-3117.91,0.00022191,2]
[367251852,1750716658564,-513.07,0.00022191,2]
[367251853,1750716658574,-730.65,0.00022191,2]
[367251854,1750716658583,-1836.83,0.00022191,2]
[367251855,1750716658593,-1371.42,0.00022191,2]
[367251856,1750716658602,-3338.91,0.00022191,2]
[367251857,1750716658612,-490.0,0.00022191,2]
[367251858,1750716658622,-490.0,0.00022191,2]
[367251859,1750716658632,-5203.6,0.00022191,2]
[367251860,1750716658645,-490.0,0.00022191,2]
[367251861,1750716658655,-1093.23,0.00022191,2]
[367251862,1750716658664,-3007.5,0.00022191,2]
[367251863,1750716658674,-538.98,0.00022191,2]
[367251864,1750716658684,-873.23,0.00022191,2]
[367251865,1750716658694,-1120.3,0.00022191,2]
[367251866,1750716658703,-1051.74,0.00022191,2]
[367251867,1750716658713,-490.0,0.00022191,2]
[367251868,1750716658723,-490.0,0.00022191,2]
[367251869,1750716658734,-638.21,0.00022191,2]
[367251870,1750716658744,-826.56,0.00022191,2]
[367251871,1750716658754,-490.0,0.00022191,2]
[367251872,1750716658764,-728.25,0.00022191,2]
[367251873,1750716658773,-490.0,0.00022191,2]
[367251874,1750716658783,-720.26,0.00022191,2]
[367251875,1750716658792,-490.0,0.00022191,2]
[367251876,1750716658801,-490.0,0.00022191,2]
[367251877,1750716658811,-1232.67,0.00022191,2]
[367251878,1750716658820,-473.59164125,0.00022191,2]
[367251879,1750716658830,-1973.07,0.00022191,2]
[367251880,1750716658839,-490.0,0.00022191,2]
[367251881,1750716658849,-775.24,0.00022191,2]
[367251882,1750716658858,-914.85,0.00022191,2]
[367251883,1750716658868,-648.4,0.00022191,2]
[367251884,1750716658878,-1100.2,0.00022191,2]
[367251885,1750716658887,-490.0,0.00022191,2]
[367251886,1750716658899,-968.73,0.00022191,2]
[367251887,1750716658908,-490.0,0.00022191,2]
[367251888,1750716658918,-593.55174394,0.00022191,2]
[367251889,1750716658928,-490.0,0.00022191,2]
[367251890,1750716658938,-1764.13,0.00022191,2]
[367251891,1750716658948,-622.94,0.00022191,2]
[367251892,1750716658958,-996.83,0.00022191,2]
[367251893,1750716658967,-1233.46,0.00022191,2]
[367251894,1750716658977,-806.08,0.00022191,2]
[367251895,1750716658987,-836.17,0.00022191,2]
[367251896,1750716658996,-1358.97,0.00022191,2]
[367251897,1750716659006,-490.0,0.00022191,2]
[367251898,1750716659015,-490.0,0.00022191,2]
[367251899,1750716659025,-1134.8,0.00022191,2]
[367251900,1750716659035,-490.0,0.00022191,2]
[367251901,1750716659045,-2557.07,0.00022191,2]
[367251902,1750716659055,-1552.36,0.00022191,2]
[367251903,1750716659065,-490.0,0.00022191,2]
[367251904,1750716659076,-1001.65,0.00022191,2]
[367251905,1750716659086,-591.95,0.00022191,2]
[367251906,1750716659096,-490.0,0.00022191,2]
[367251907,1750716659105,-642.53,0.00022191,2]
[367251908,1750716659115,-650.66,0.00022191,2]
[367251909,1750716659125,-10931.37,0.00022191,2]
[367251910,1750716659134,-605.31,0.00022191,2]
[367251911,1750716659144,-490.0,0.00022191,2]
[367251912,1750716659154,-2684.03,0.00022191,2]
[367251913,1750716659164,-4266.11,0.00022191,2]
[367251914,1750716659173,-578.89,0.00022191,2]
[367251915,1750716659183,-2444.35,0.00022191,2]
[367251916,1750716659192,-645.94,0.00022191,2]
[367251917,1750716659202,-816.24,0.00022191,2]
[367251918,1750716659212,-476.2,0.00022191,2]
[367251919,1750716659221,-490.0,0.00022191,2]
[367251920,1750716659231,-650.09,0.00022191,2]
[367251921,1750716659240,-490.0,0.00022191,2]
[367251922,1750716659250,-770.42,0.00022191,2]
[367251923,1750716659259,-837.21,0.00022191,2]
[367251924,1750716659269,-968.91,0.00022191,2]
[367251925,1750716659278,-1526.14,0.00022191,2]
[367251926,1750716659288,-490.0,0.00022191,2]
[367251927,1750716659298,-490.0,0.00022191,2]
[367251928,1750716659307,-5861.97,0.00022191,2]
[367251929,1750716659317,-601.42,0.00022191,2]
[367251930,1750716659327,-540.47,0.00022191,2]
[367251931,1750716659336,-490.0,0.00022191,2]
[367251932,1750716659346,-877.5,0.00022191,2]
[367251933,1750716659356,-490.0,0.00022191,2]
[367251934,1750716659366,-975.84,0.00022191,2]
[367251935,1750716659375,-667.73,0.00022191,2]
[367251936,1750716659385,-2394.23,0.00022191,2]
[367251937,1750716659395,-490.0,0.00022191,2]
[367251938,1750716659405,-490.0,0.00022191,2]
[367251939,1750716659414,-490.0,0.00022191,2]
[367251940,1750716659424,-1765.27,0.00022191,2]
[367251941,1750716659434,-3860.29,0.00022191,2]
[367251942,1750716659443,-747.28,0.00022191,2]
[367251943,1750716659453,-719.92,0.00022191,2]
[367251944,1750716659462,-736.45,0.00022191,2]
[367251945,1750716659472,-490.0,0.00022191,2]
[367251946,1750716659481,-712.29,0.00022191,2]
[367251947,1750716659491,-490.0,0.00022191,2]
[367251948,1750716659500,-490.0,0.00022191,2]
[367251949,1750716659509,-2016.06,0.00022191,2]
[367251950,1750716659519,-1254.06,0.00022191,2]
[367251951,1750716659528,-490.0,0.00022191,2]
[367251952,1750716659541,-1146.92,0.00022191,2]
[367251953,1750716659551,-4772.66,0.00022191,2]
[367251954,1750716659560,-490.0,0.00022191,2]
[367251955,1750716659570,-490.0,0.00022191,2]
[367251956,1750716659580,-1719.73,0.00022191,2]
[367251957,1750716659589,-559.03,0.00022191,2]
[367251958,1750716659598,-715.85,0.00022191,2]
[367251959,1750716659608,-490.0,0.00022191,2]
[367251960,1750716659617,-538.11,0.00022191,2]
[367251961,1750716659627,-997.45,0.00022191,2]
[367251962,1750716659638,-490.0,0.00022191,2]
[367251963,1750716659652,-642.99,0.00022191,2]
[367251964,1750716659666,-1330.71,0.00022191,2]
[367251965,1750716659675,-490.0,0.00022191,2]
[367251966,1750716659684,-4435.67,0.00022191,2]
[367251967,1750716659694,-1664.4,0.00022191,2]
[367251968,1750716659703,-490.0,0.00022191,2]
[367251969,1750716659713,-530.34,0.00022191,2]
[367251970,1750716659722,-490.0,0.00022191,2]
[367251971,1750716659732,-655.02,0.00022191,2]
[367251972,1750716659743,-683.74,0.00022191,2]
[367251973,1750716659753,-612.07,0.00022191,2]
[367251974,1750716659762,-796.62,0.00022191,2]
[367251975,1750716659772,-3015.27,0.00022191,2]
[367251976,1750716659783,-490.0,0.00022191,2]
[367251977,1750716659793,-490.0,0.00022191,2]
[367251978,1750716659803,-619.12,0.00022191,2]
[367251979,1750716659813,-490.0,0.00022191,2]
[367251980,1750716659824,-1260.63,0.00022191,2]
[367251981,1750716659835,-694.56,0.00022191,2]
[367251982,1750716659845,-1043.72,0.00022191,2]
[367251983,1750716659855,-640.53,0.00022191,2]
[367251984,1750716659864,-490.0,0.00022191,2]
[367251985,1750716659874,-881.24,0.00022191,2]
[367251986,1750716659884,-5933.42,0.00022191,2]
[367251987,1750716659897,-7643.03,0.00022191,2]
[367251988,1750716659906,-704.32,0.00022191,2]
[367251989,1750716659916,-2268.15,0.00022191,2]
[367251990,1750716659926,-490.0,0.00022191,2]
[367251991,1750716659936,-490.0,0.00022191,2]
[367251992,1750716659945,-2228.62,0.00022191,2]
[367251993,1750716659954,-1019.9,0.00022191,2]
[367251994,1750716659964,-1763.37,0.00022191,2]
[367251995,1750716659974,-993.32,0.00022191,2]
[367251996,1750716659984,-490.0,0.00022191,2]
[367251997,1750716659994,-1055.29,0.00022191,2]
[367251998,1750716660003,-2596.73,0.00022191,2]
[367251999,1750716660013,-490.0,0.00022191,2]
[367252000,1750716660023,-915.99,0.00022191,2]
[367252001,1750716660033,-814.49,0.00022191,2]
[367252002,1750716660043,-1497.4,0.00022191,2]
[367252003,1750716660130,-1282.9,0.00022191,2]
[367252004,1750716660140,-993.79,0.00022191,2]
[367252005,1750716660151,-700.64,0.00022191,2]
[367252006,1750716660161,-490.0,0.00022191,2]
[367252007,1750716660171,-490.0,0.00022191,2]
[367252008,1750716660181,-626.52,0.00022191,2]
[367252009,1750716660191,-490.0,0.00022191,2]
[367252010,1750716660201,-490.0,0.00022191,2]
[367252011,1750716660211,-1160.48,0.00022191,2]
[367252012,1750716660221,-560.43,0.00022191,2]
[367252013,1750716660231,-1076.12,0.00022191,2]
[367252014,1750716660241,-1694.87,0.00022191,2]
[367252015,1750716660251,-2678.78,0.00022191,2]
[367252016,1750716660261,-490.0,0.00022191,2]
[367252017,1750716660271,-490.0,0.00022191,2]
[367252018,1750716660280,-1047.67,0.00022191,2]
[367252019,1750716660289,-490.0,0.00022191,2]
[367252020,1750716660299,-1304.01,0.00022191,2]
[367252021,1750716660308,-610.8,0.00022191,2]
[367252022,1750716660317,-490.0,0.00022191,2]
[367252023,1750716660327,-1949.79,0.00022191,2]
[367252024,1750716660337,-1295.84,0.00022191,2]
[367252025,1750716660346,-490.0,0.00022191,2]
[367252026,1750716660356,-611.43,0.00022191,2]
[367252027,1750716660365,-3522.84,0.00022191,2]
[367252028,1750716660375,-490.0,0.00022191,2]
[367252029,1750716660384,-1538.22,0.00022191,2]
[367252030,1750716660397,-490.0,0.00022191,2]
[367252031,1750716660406,-490.0,0.00022191,2]
[367252032,1750716660416,-490.0,0.00022191,2]
[367252033,1750716660425,-1319.53,0.00022191,2]
[367252034,1750716660435,-1206.38,0.00022191,2]
[367252035,1750716660445,-490.0,0.00022191,2]
[367252036,1750716660454,-1202.1,0.00022191,2]
[367252037,1750716660463,-1066.92,0.00022191,2]
[367252038,1750716660473,-490.0,0.00022191,2]
[367252039,1750716660483,-3217.12,0.00022191,2]
[367252040,1750716660493,-1034.4,0.00022191,2]
[367252041,1750716660503,-799.02,0.00022191,2]
[367252042,1750716660513,-674.64,0.00022191,2]
[367252043,1750716660522,-769.74,0.00022191,2]
[367252044,1750716660532,-1055.05,0.00022191,2]
[367252045,1750716660542,-1185.09,0.00022191,2]
[367252046,1750716660552,-3735.81,0.00022191,2]
[367252047,1750716660562,-874.13,0.00022191,2]
[367252048,1750716660571,-1809.35,0.00022191,2]
[367252049,1750716660581,-603.01,0.00022191,2]
[367252050,1750716660591,-1100.65,0.00022191,2]
[367252051,1750716660600,-506.50270823,0.00022191,2]
[367252052,1750716660610,-3794.74,0.00022191,2]
[367252053,1750716660620,-1084.22,0.00022191,2]
[367252054,1750716660630,-593.74,0.00022191,2]
[367252055,1750716660643,-10870.02,0.00022191,2]
[367252056,1750716660653,-490.0,0.00022191,2]
[367252057,1750716660665,-848.33,0.00022191,2]
[367252058,1750716660675,-490.0,0.00022191,2]
[367252059,1750716660686,-118889.8,0.00022191,2]
[367252060,1750716660696,-921.56,0.00022191,2]
[367252061,1750716660705,-657.34,0.00022191,2]
[367252062,1750716660715,-611.32,0.00022191,2]
[367252063,1750716660727,-1763.03,0.00022191,2]
[367252064,1750716660736,-748.08,0.00022191,2]
[367252065,1750716660747,-1674.68,0.00022191,2]
[367252066,1750716660756,-490.0,0.00022191,2]
[367252067,1750716660766,-620.37,0.00022191,2]
[367252068,1750716660776,-1267.31,0.00022191,2]
[367252069,1750716660786,-490.0,0.00022191,2]
[367252070,1750716660796,-1938.67,0.00022191,2]
[367252071,1750716660806,-1155.03,0.00022191,2]
[367252072,1750716660815,-490.0,0.00022191,2]
[367252073,1750716660825,-840.05,0.00022191,2]
[367252074,1750716660835,-490.0,0.00022191,2]
[367252075,1750716660845,-490.0,0.00022191,2]
[367252076,1750716660855,-789.0,0.00022191,2]
[367252077,1750716660865,-683.03,0.00022191,2]
[367252078,1750716660874,-1196.89,0.00022191,2]
[367252079,1750716660884,-490.0,0.00022191,2]
[367252080,1750716660899,-490.0,0.00022191,2]
[367252081,1750716660909,-1378.2,0.00022191,2]
[367252082,1750716660919,-1223.67,0.00022191,2]
[367252083,1750716660928,-939.46,0.00022191,2]
[367252084,1750716660938,-986.43,0.00022191,2]
[367252085,1750716660949,-490.0,0.00022191,2]
[367252086,1750716660958,-490.0,0.00022191,2]
[367252087,1750716660968,-924.17,0.00022191,2]
[367252088,1750716660978,-1548.75,0.00022192,2]
[367252089,1750716660987,-798.39,0.00022192,2]
[367252090,1750716660996,-798.39,0.00022192,2]
[367252091,1750716661006,-798.39,0.00022192,2]
[367252092,1750716661015,-798.39,0.00022192,2]
[367252093,1750716661025,-798.39,0.00022192,2]
[367252094,1750716661035,-1591.27,0.00022192,2]
[367252095,1750716661044,-453.53758909,0.00022194,2]
[367252096,1750716661054,-151.0,0.0002221,2]
[367252097,1750716661063,-154.96534825,0.0002221,2]
[367252098,1750716661073,-151.0,0.0002221,2]
[367252099,1750716661083,-1200.0,0.0002221,2]
[367252100,1750716661092,-287.33422519,0.0002221,2]
[367252101,1750716661102,-1200.0,0.0002221,2]
[367252102,1750716661112,-1083.91553038,0.0002221,2]
[367252103,1750716661121,-152.0,0.0002221,2]
[367252104,1750716661130,-154.31656129,0.0002221,2]
[367252105,1750716661140,-166.0,0.0002221,2]
[367252106,1750716661153,-270.37305814,0.00022212,2]
[367252107,1750716661163,-500.0,0.00022218,2]
[367252108,1750716661172,-453.53758909,0.00022228,2]
[367252109,1750716661182,-500.0,0.00022246,2]
[367252110,1750716661192,-150.0,0.00022247,2]
[367252111,1750716661202,-8597.46470426,0.00022247,2]
[367252112,1750716661212,-1000.0,0.00022257,2]
[367252113,1750716661222,-210.0,0.0002226,2]
[367252114,1750716661232,-453.53758909,0.00022262,2]
[367252115,1750716661242,-150.0,0.00022265,2]
[367252116,1750716661251,-500.0,0.00022273,2]
[367252117,1750716661261,-156.13646521,0.00022274,2]
[367252118,1750716661270,-1034.0,0.00022293,2]
[367252119,1750716661279,-453.53758909,0.00022297,2]
[367252120,1750716661289,-500.0,0.00022301,2]
[367252121,1750716661299,-500.0,0.00022328,2]
[367252122,1750716661309,-1000.0,0.0002233,5]
[367252123,1750716661318,-453.53758909,0.00022331,2]
[367252124,1750716661328,-639.94847321,0.00022343,2]
[367252125,1750716661338,-500.0,0.00022344,7]
[367252126,1750716661346,-500.0,0.00022344,7]
[367252127,1750716661355,-500.0,0.00022355,2]
[367252128,1750716661365,-1279.0,0.00022358,2]
[367252129,1750716661374,-687.735,0.00022358,2]
[367252130,1750716661384,-559.0,0.00022358,2]
[367252131,1750716661396,-929.0,0.00022358,2]
[367252132,1750716661406,-2005.0,0.00022358,2]
[367252133,1750716661416,-1677.0,0.00022358,2]
[367252134,1750716661425,-1175.264,0.00022358,2]
[367252135,1750716661435,-291.741,0.00022358,2]
[367252136,1750716661444,-4097.0,0.00022358,2]
[367252137,1750716661453,-7138.0,0.00022358,2]
[367252138,1750716661463,-856.0,0.00022358,2]
[367252139,1750716661473,-200.0,0.00022358,2]
[367252140,1750716661483,-200.0,0.00022358,2]
[367252141,1750716661494,-150.0,0.00022363,2]
[367252142,1750716661503,-453.53758909,0.00022365,2]
[367252143,1750716661512,-834.59255148,0.00022366,2]
[367252144,1750716661522,-150.0,0.00022376,2]
[367252145,1750716661532,-8597.46470426,0.00022381,2]
[367252146,1750716661541,-500.0,0.00022383,2]
[367252147,1750716661551,-1000.0,0.00022397,2]
[367252148,1750716661561,-150.0,0.00022399,2]
[367252149,1750716661570,-150.0,0.00022406,2]
[367252150,1750716661579,-500.0,0.0002241,2]
[367252151,1750716661588,-150.0,0.00022411,2]
[367252152,1750716661598,-150.0,0.00022413,2]
[367252153,1750716661607,-150.0,0.00022427,2]
[367252154,1750716661617,-150.0,0.00022429,2]
[367252155,1750716661627,-404.06852104,0.00022438,2]
[367252156,1750716661636,-311.0,0.00022438,2]
[367252157,1750716661652,-142518.0,0.00022438,2]
[367252158,1750716661664,-150.0,0.0002245,2]
[367252159,1750716661675,-13020.1112008,0.0002245,2]
[367252160,1750716661684,-663.6158479,0.0002245,2]
[367252161,1750716661694,-188035.7061799,0.0002245,2]
[367252162,1750716661704,-4389.7129209,0.0002245,2]
[367252163,1750716661713,-3345.0,0.00022454,2]
[367252164,1750716661723,-150.0,0.00022457,2]
[367252165,1750716661732,-150.0,0.00022459,2]
[367252166,1750716661742,-500.0,0.00022464,2]
[367252167,1750716661752,-500.0,0.00022464,2]
[367252168,1750716661761,-500.0,0.00022464,2]
[367252169,1750716661770,-490.0,0.00022465,2]
[367252170,1750716661779,-490.0,0.00022465,2]
[367252171,1750716661789,-490.0,0.00022465,2]
[367252172,1750716661799,-490.0,0.00022465,2]
[367252173,1750716661808,-490.0,0.00022465,2]
[367252174,1750716661818,-593.8097913,0.00022465,2]
[367252175,1750716661828,-611.007222,0.00022465,2]
[367252176,1750716661837,-563.46,0.00022465,2]
[367252177,1750716661847,-490.0,0.00022465,2]
[367252178,1750716661856,-780.21,0.00022465,2]
[367252179,1750716661865,-490.0,0.00022465,2]
[367252180,1750716661875,-490.0,0.00022465,2]
[367252181,1750716661884,-753.72,0.00022465,2]
[367252182,1750716661895,-803.48,0.00022465,2]
[367252183,1750716661904,-490.0,0.00022465,2]
[367252184,1750716661914,-647.25,0.00022465,2]
[367252185,1750716661923,-490.0,0.00022465,2]
[367252186,1750716661932,-490.0,0.00022465,2]
[367252187,1750716661942,-490.0,0.00022465,2]
[367252188,1750716661951,-490.0,0.00022465,2]
[367252189,1750716661960,-490.0,0.00022465,2]
[367252190,1750716661969,-490.0,0.00022465,2]
[367252191,1750716661979,-490.0,0.00022465,2]
[367252192,1750716661988,-490.0,0.00022465,2]
[367252193,1750716661998,-517.36,0.00022465,2]
[367252194,1750716662007,-490.0,0.00022465,2]
[367252195,1750716662017,-509.4,0.00022465,2]
[367252196,1750716662026,-578.82,0.00022465,2]
[367252197,1750716662036,-348.89596843,0.00022465,2]
[367252198,1750716662045,-490.0,0.00022465,2]
[367252199,1750716662054,-490.0,0.00022465,2]
[367252200,1750716662064,-490.0,0.00022465,2]
[367252201,1750716662073,-490.0,0.00022465,2]
[367252202,1750716662083,-490.0,0.00022465,2]
[367252203,1750716662092,-632.16,0.00022465,2]
[367252204,1750716662102,-490.0,0.00022465,2]
[367252205,1750716662112,-490.0,0.00022465,2]
[367252206,1750716662121,-490.0,0.00022465,2]
[367252207,1750716662131,-667.39,0.00022465,2]
[367252208,1750716662141,-985.54,0.00022465,2]
[367252209,1750716662153,-687.98,0.00022465,2]
[367252210,1750716662163,-659.33,0.00022465,2]
[367252211,1750716662173,-667.22,0.00022465,2]
[367252212,1750716662182,-490.0,0.00022465,2]
[367252213,1750716662192,-490.0,0.00022465,2]
[367252214,1750716662201,-490.0,0.00022465,2]
[367252215,1750716662211,-548.73,0.00022465,2]
[367252216,1750716662220,-490.0,0.00022465,2]
[367252217,1750716662228,-490.0,0.00022465,2]
[367252218,1750716662237,-490.0,0.00022465,2]
[367252219,1750716662247,-490.0,0.00022465,2]
[367252220,1750716662255,-490.0,0.00022465,2]
[367252221,1750716662265,-490.0,0.00022465,2]
[367252222,1750716662274,-195.29595054,0.00022465,2]
[367252223,1750716662284,-300.0,0.00022465,2]
[367252224,1750716662293,-510.14,0.00022465,2]
[367252225,1750716662302,-506.47,0.00022465,2]
[367252226,1750716662311,-568.52,0.00022465,2]
[367252227,1750716662321,-849.42,0.00022465,2]
[367252228,1750716662331,-587.48,0.00022465,2]
[367252229,1750716662340,-490.0,0.00022465,2]
[367252230,1750716662349,-490.0,0.00022465,2]
[367252231,1750716662358,-490.0,0.00022465,2]
[367252232,1750716662367,-736.18,0.00022465,2]
[367252233,1750716662376,-704.94,0.00022465,2]
[367252234,1750716662386,-490.0,0.00022465,2]
[367252235,1750716662399,-490.0,0.00022465,2]
[367252236,1750716662409,-490.0,0.00022465,2]
[367252237,1750716662418,-490.0,0.00022465,2]
[367252238,1750716662427,-906.29,0.00022465,2]
[367252239,1750716662436,-585.37,0.00022465,2]
[367252240,1750716662446,-490.0,0.00022465,2]
[367252241,1750716662456,-490.0,0.00022465,2]
[367252242,1750716662465,-679.64,0.00022465,2]
[367252243,1750716662474,-490.0,0.00022465,2]
[367252244,1750716662483,-490.0,0.00022465,2]
[367252245,1750716662492,-634.1,0.00022465,2]
[367252246,1750716662501,-490.0,0.00022465,2]
[367252247,1750716662510,-490.0,0.00022465,2]
[367252248,1750716662519,-490.0,0.00022465,2]
[367252249,1750716662528,-490.0,0.00022465,2]
[367252250,1750716662537,-490.0,0.00022465,2]
[367252251,1750716662547,-490.0,0.00022465,2]
[367252252,1750716662556,-868.08,0.00022465,2]
[367252253,1750716662565,-490.0,0.00022465,2]
[367252254,1750716662574,-490.0,0.00022465,2]
[367252255,1750716662583,-490.0,0.00022465,2]
[367252256,1750716662592,-731.96,0.00022465,2]
[367252257,1750716662601,-490.0,0.00022465,2]
[367252258,1750716662610,-546.9,0.00022465,2]
[367252259,1750716662619,-490.0,0.00022465,2]
[367252260,1750716662629,-490.0,0.00022465,2]
[367252261,1750716662638,-1263.18,0.00022465,2]
[367252262,1750716662653,-490.0,0.00022465,2]
[367252263,1750716662662,-572.02,0.00022465,2]
[367252264,1750716662671,-490.0,0.00022465,2]
[367252265,1750716662681,-490.0,0.00022465,2]
[367252266,1750716662691,-490.0,0.00022465,2]
[367252267,1750716662700,-490.0,0.00022465,2]
[367252268,1750716662709,-490.0,0.00022465,2]
[367252269,1750716662718,-684.33,0.00022465,2]
[367252270,1750716662730,-907.85,0.00022465,2]
[367252271,1750716662740,-490.0,0.00022465,2]
[367252272,1750716662749,-250.0,0.00022465,2]
[367252273,1750716662758,-490.0,0.00022465,2]
[367252274,1750716662767,-689.15,0.00022465,2]
[367252275,1750716662776,-500.0,0.00022465,2]
[367252276,1750716662786,-490.0,0.00022465,2]
[367252277,1750716662795,-490.0,0.00022465,2]
[367252278,1750716662804,-490.0,0.00022465,2]
[367252279,1750716662815,-680.89,0.00022465,2]
[367252280,1750716662824,-898.43,0.00022465,2]
[367252281,1750716662834,-534.48,0.00022465,2]
[367252282,1750716662843,-813.42,0.00022465,2]
[367252283,1750716662852,-490.0,0.00022465,2]
[367252284,1750716662862,-636.28,0.00022465,2]
[367252285,1750716662871,-490.0,0.00022465,2]
[367252286,1750716662881,-490.0,0.00022465,2]
[367252287,1750716662890,-624.6,0.00022465,2]
[367252288,1750716662902,-490.0,0.00022465,2]
[367252289,1750716662912,-490.0,0.00022465,2]
[367252290,1750716662921,-490.0,0.00022465,2]
[367252291,1750716662930,-490.0,0.00022465,2]
[367252292,1750716662939,-1120.25,0.00022465,2]
[367252293,1750716662948,-490.0,0.00022465,2]
[367252294,1750716662958,-490.0,0.00022465,2]
[367252295,1750716662967,-891.13,0.00022465,2]
[367252296,1750716662976,-644.99,0.00022465,2]
[367252297,1750716662986,-889.82,0.00022465,2]
[367252298,1750716662995,-490.0,0.00022465,2]
[367252299,1750716663004,-490.0,0.00022465,2]
[367252300,1750716663014,-490.0,0.00022465,2]
[367252301,1750716663023,-868.41,0.00022465,2]
[367252302,1750716663033,-1377.2,0.00022465,2]
[367252303,1750716663042,-495.88,0.00022465,2]
[367252304,1750716663052,-490.0,0.00022465,2]
[367252305,1750716663061,-745.19,0.00022465,2]
[367252306,1750716663071,-610.64,0.00022465,2]
[367252307,1750716663080,-490.0,0.00022465,2]
[367252308,1750716663090,-490.0,0.00022465,2]
[367252309,1750716663100,-943.84,0.00022465,2]
[367252310,1750716663109,-602.03,0.00022465,2]
[367252311,1750716663119,-543.99,0.00022465,2]
[367252312,1750716663128,-1771.19,0.00022465,2]
[367252313,1750716663138,-490.0,0.00022465,2]
[367252314,1750716663154,-490.0,0.00022465,2]
[367252315,1750716663164,-735.04,0.00022465,2]
[367252316,1750716663174,-490.0,0.00022465,2]
[367252317,1750716663183,-490.0,0.00022465,2]
[367252318,1750716663193,-974.25,0.00022465,2]
[367252319,1750716663203,-630.35,0.00022465,2]
[367252320,1750716663212,-542.42,0.00022465,2]
[367252321,1750716663221,-490.0,0.00022465,2]
[367252322,1750716663231,-1092.49,0.00022465,2]
[367252323,1750716663240,-286.92797743,0.00022465,2]
[367252324,1750716663249,-490.0,0.00022465,2]
[367252325,1750716663259,-490.0,0.00022465,2]
[367252326,1750716663268,-348.71632416,0.00022465,2]
[367252327,1750716663277,-490.0,0.00022465,2]